bitfinex-derivatives/quotes_SOLF0:USTF0_20240830
["timestamp","ask_amount","ask_price","bid_price","bid_amount"]
[1725000751958,11.04,139.33,139.26,11.04]
[1725000752147,19.5086,139.33,139.28,3.5895]
[1725000752348,15.92,139.33,139.26,11.04]
[1725000752652,0.04791678,139.31,139.29,3.5892]
[1725000753045,0.04791678,139.31,139.28,0.04788687]
[1725000754057,0.04791678,139.31,139.28,3.63748687]
[1725000754652,0.04791678,139.31,139.29,3.5892]
[1725000755553,12.3849,139.39,139.3,11.04]
[1725000755756,1.3923,139.38,139.27,1.2825]
[1725000755952,1.3923,139.38,139.32,11.04]
[1725000756155,12.4323,139.38,139.32,11.04]
[1725000756358,3.5875,139.37,139.32,3.5886]
[1725000756558,0.04813605,139.36,139.34,0.05509628]
[1725000759355,0.04813605,139.36,139.34,3.64299628]
[1725000760153,0.04813605,139.36,139.35,3.5879]
[1725000761256,0.04813605,139.36,139.34,3.64319628]
[1725000764864,0.04813605,139.36,139.34,0.05509628]
[1725000767961,0.04813605,139.36,139.35,3.5879]
[1725000774871,0.04813605,139.36,139.34,11.09509628]
[1725000774872,4.88,139.42,139.34,11.09509628]
[1725000775175,1.3796,139.44,139.34,11.09509628]
[1725000775176,17.2996,139.44,139.37,11.04]
[1725000775568,17.2996,139.44,139.39,3.5868]
[1725000775967,17.2996,139.44,139.4,3.63414519]
[1725000775968,6.2596,139.44,139.4,3.63414519]
[1725000776274,1.3796,139.44,139.4,3.63414519]
[1725000776673,2.7036,139.45,139.42,3.586]
[1725000776973,2.7036,139.45,139.4,0.04774519]
[1725000776974,2.7036,139.45,139.4,11.08774519]
[1725000777172,13.7436,139.45,139.4,3.63424519]
[1725000777371,11.04,139.44,139.4,3.63424519]
[1725000779275,14.6256,139.44,139.4,3.63424519]
[1725000781677,11.04,139.44,139.41,3.5863]
[1725000782074,14.6257,139.44,139.4,3.63424519]
[1725000782380,11.04,139.42,139.4,0.04774519]
[1725000782577,15.92,139.42,139.4,0.04774519]
[1725000783173,3.5863,139.41,139.4,0.04774519]
[1725000784482,14.6263,139.41,139.37,3.5871]
[1725000784681,3.5868,139.4,139.36,3.5876]
[1725000785282,11.04,139.38,139.32,11.04]
[1725000785478,0.04774519,139.36,139.34,0.05308401]
[1725000786283,0.04774519,139.36,139.35,3.5879]
[1725000788471,95.926191,139.53,139.38,3.587]
[1725000788673,11.04,139.45,139.38,14.627]
[1725000788987,3.586,139.43,139.38,14.627]
[1725000789278,3.50086095,139.44,139.4,3.5864]
[1725000789481,10.78283198,139.54,139.41,0.05204984]
[1725000789482,11.04,139.46,139.41,0.05204984]
[1725000789680,4.0893,139.5,139.42,0.04677747]
[1725000789881,11.04,139.47,139.42,0.04677747]
[1725000790084,8.530452,139.47,139.42,3.63267747]
[1725000790275,4.88,139.46,139.42,3.63267747]
[1725000790676,3.585,139.47,139.42,3.63267747]
[1725000790979,4.88,139.46,139.42,3.63267747]
[1725000791176,7.25994574,139.46,139.42,0.04677747]
[1725000791579,12.13994574,139.46,139.42,0.04677747]
[1725000792084,27.53,139.48,139.42,0.04677747]
[1725000792085,27.53,139.48,139.43,3.5857]
[1725000792286,8.43181068,139.47,139.42,0.04677747]
[1725000792479,3.55181068,139.47,139.42,0.04677747]
[1725000792679,8.4652,139.46,139.42,0.04677747]
[1725000793080,3.5852,139.46,139.42,0.04677747]
[1725000793479,3.5852,139.46,139.42,3.63267747]
[1725000793974,4.88,139.46,139.43,3.5858]
[1725000794175,3.5848,139.47,139.43,3.5858]
[1725000794380,7.2531399,139.47,139.43,3.5858]
[1725000794675,12.1331399,139.47,139.43,3.5858]
[1725000794880,8.5483399,139.47,139.42,0.04677747]
[1725000795282,3.6683399,139.47,139.42,0.04677747]
[1725000795474,31.1147,139.48,139.43,3.5856]
[1725000795686,4.88,139.47,139.43,3.5856]
[1725000795886,36.05933026,139.48,139.43,3.5856]
[1725000796182,4.88,139.47,139.43,3.5856]
[1725000796782,8.465,139.47,139.43,3.5856]
[1725000797185,31.17933026,139.48,139.42,0.04677747]
[1725000797381,4.88,139.47,139.42,0.04677747]
[1725000797682,12.11403026,139.48,139.44,3.5855]
[1725000797880,27.53,139.49,139.42,0.04677747]
[1725000798277,3.585,139.46,139.42,3.63277747]
[1725000799689,4.0893,139.5,139.46,3.585]
[1725000799892,4.88,139.49,139.43,27.53]
[1725000800088,4.88,139.49,139.47,0.0499418]
[1725000800991,8.4644,139.49,139.47,0.0499418]
[1725000801187,4.88,139.49,139.47,0.0499418]
[1725000801979,8.4643,139.49,139.47,0.0499418]
[1725000802380,3.5845,139.48,139.47,0.0499418]
[1725000802587,3.5845,139.48,139.39,1.303]
[1725000802588,32.41,139.49,139.39,1.303]
[1725000802893,27.53,139.46,139.38,3.60451774]
[1725000803187,27.53,139.46,139.36,33.8195]
[1725000803188,3.5856,139.44,139.39,3.5868]
[1725000803588,0.04795274,139.43,139.4,0.04927965]
[1725000804890,3.63375274,139.43,139.4,0.04927965]
[1725000805287,0.04795274,139.43,139.4,0.04927965]
[1725000805487,3.70938418,139.43,139.4,0.04927965]
[1725000805791,4.88,139.42,139.4,0.04927965]
[1725000805998,3.5861,139.42,139.4,0.04927965]
[1725000806387,8.4661,139.42,139.4,0.04927965]
[1725000806593,3.5861,139.42,139.4,0.04927965]
[1725000807393,27.53,139.42,139.4,0.04927965]
[1725000807591,27.53,139.41,139.4,0.04927965]
[1725000808097,31.1163,139.41,139.4,0.04927965]
[1725000809297,35.9963,139.41,139.4,0.04927965]
[1725000809686,31.1163,139.41,139.4,0.04927965]
[1725000811001,3.5872,139.38,139.34,3.5881]
[1725000811200,27.53,139.41,139.32,27.53]
[1725000811388,3.63382099,139.42,139.31,2.7376]
[1725000811389,27.53,139.39,139.31,2.7376]
[1725000811692,3.5874,139.37,139.33,3.5882]
[1725000811897,0.0552188,139.36,139.34,0.0479711]
[1725000813097,0.0552188,139.36,139.34,3.6360711]
[1725000815195,0.0552188,139.36,139.34,0.0479711]
[1725000818294,0.0552188,139.36,139.34,27.5779711]
[1725000818501,27.53,139.44,139.34,27.53]
[1725000818996,3.5865,139.41,139.36,3.5875]
[1725000819399,3.5865,139.41,139.37,0.04783004]
[1725000819600,0.04400265,139.4,139.37,0.04783004]
[1725000819801,0.04400265,139.4,139.37,3.63513004]
[1725000820807,3.63060265,139.4,139.37,3.63513004]
[1725000821004,3.63060265,139.4,139.37,0.04783004]
[1725000821005,11.02,139.39,139.37,0.04783004]
[1725000821406,14.6069,139.39,139.37,0.04783004]
[1725000822021,3.5869,139.39,139.37,0.04783004]
[1725000822216,31.19070265,139.4,139.37,0.04783004]
[1725000825625,3.63070265,139.4,139.37,3.63513004]
[1725000826127,3.63070265,139.4,139.37,0.04783004]
[1725000829924,3.5868,139.39,139.37,0.04783004]
[1725000830527,3.5871,139.38,139.37,0.04783004]
[1725000831024,27.60400265,139.4,139.37,0.04783004]
[1725000831619,3.5869,139.39,139.37,0.04783004]
[1725000832121,27.56,139.38,139.37,0.04783004]
[1725000832319,27.56,139.38,139.25,33.10540043]
[1725000832519,27.56,139.33,139.24,6.24811434]
[1725000832917,4.88,139.32,139.24,6.24811434]
[1725000833122,8.4687,139.32,139.27,3.5897]
[1725000833322,0.05316184,139.31,139.28,0.04739477]
[1725000834226,3.64206184,139.31,139.28,0.04739477]
[1725000836631,3.5892,139.3,139.28,0.04739477]
[1725000837230,27.61316184,139.31,139.28,0.04739477]
[1725000837829,31.1494,139.29,139.28,0.04739477]
[1725000839728,3.5894,139.29,139.28,0.04739477]
[1725000839935,6.2401,139.3,139.28,0.04739477]
[1725000840533,1.3601,139.3,139.28,0.04739477]
[1725000840944,6.2401,139.3,139.28,0.04739477]
[1725000841234,4.88,139.3,139.28,0.04739477]
[1725000841429,3.5892,139.3,139.28,0.04739477]
[1725000841732,4.93316184,139.31,139.28,0.04739477]
[1725000841930,3.64216184,139.31,139.28,0.04739477]
[1725000843131,8.52216184,139.31,139.28,0.04739477]
[1725000843740,3.5892,139.3,139.28,0.04739477]
[1725000844737,0.05316184,139.31,139.28,0.04739477]
[1725000844939,0.05316184,139.31,139.3,3.5891]
[1725000851740,0.05316184,139.31,139.29,3.5893]
[1725000852340,0.05316184,139.31,139.3,3.5891]
[1725000858752,0.05316184,139.31,139.29,3.5893]
[1725000859045,0.05316184,139.31,139.28,0.04739477]
[1725000860150,0.05316184,139.31,139.29,11.03]
[1725000860344,0.05316184,139.31,139.3,3.5891]
[1725000860644,3.51820654,139.37,139.29,11.03]
[1725000860849,13.6615,139.38,139.3,11.03]
[1725000861149,17.29551044,139.38,139.33,3.5882]
[1725000861346,22.17551044,139.38,139.33,3.5882]
[1725000861645,0.03867085,139.37,139.31,11.03]
[1725000861847,0.03867085,139.37,139.34,0.05058063]
[1725000862243,0.03867085,139.37,139.34,3.63868063]
[1725000862944,4.91867085,139.37,139.34,3.63868063]
[1725000863151,0.03867085,139.37,139.34,3.63868063]
[1725000863352,4.91867085,139.37,139.34,3.63868063]
[1725000863551,0.03867085,139.37,139.34,3.63868063]
[1725000863748,3.62607085,139.37,139.34,3.63868063]
[1725000864743,0.03867085,139.37,139.34,3.63868063]
[1725000870958,0.03867085,139.37,139.35,3.5878]
[1725000873851,0.03867085,139.37,139.34,3.63868063]
[1725000876263,3.62607085,139.37,139.34,3.63868063]
[1725000882059,3.5877,139.36,139.34,0.05058063]
[1725000882255,11.03,139.36,139.34,0.05058063]
[1725000882462,11.03,139.35,139.34,0.05058063]
[1725000882864,14.6179,139.35,139.34,0.05058063]
[1725000885065,11.03,139.35,139.34,0.05058063]
[1725000885269,3.5877,139.36,139.34,0.05058063]
[1725000886770,3.5879,139.35,139.34,0.05058063]
[1725000888468,3.5877,139.36,139.34,0.05058063]
[1725000890266,0.03867085,139.37,139.34,3.63848063]
[1725000890777,0.03867085,139.37,139.34,0.05058063]
[1725000892370,0.03867085,139.37,139.35,3.5876]
[1725000894471,11.03,139.36,139.34,0.05058063]
[1725000895279,14.6178,139.36,139.34,0.05058063]
[1725000895476,11.03,139.36,139.34,0.05058063]
[1725000896774,3.5879,139.35,139.34,0.05058063]
[1725000911689,0.03867085,139.37,139.34,0.05058063]
[1725000913391,3.5876,139.36,139.34,0.05058063]
[1725000914095,0.03867085,139.37,139.34,0.05058063]
[1725000914292,0.03867085,139.37,139.34,11.08058063]
[1725000914903,0.03867085,139.37,139.36,3.5876]
[1725000923508,0.03867085,139.37,139.35,3.5878]
[1725000927902,0.03867085,139.37,139.36,3.5876]
[1725000928411,0.03867085,139.37,139.34,11.08058063]
[1725000928609,0.03867085,139.37,139.35,3.5877]
[1725000935020,0.03867085,139.37,139.35,3.5879]
[1725000937513,0.03867085,139.37,139.36,3.5876]
[1725000947933,223.98,139.53,139.36,4.86]
[1725000948228,11.03,139.46,139.36,3.65198364]
[1725000948423,14.6151,139.46,139.38,11.03]
[1725000948620,14.6151,139.46,139.38,15.89]
[1725000948826,11.03,139.46,139.42,3.5859]
[1725000949633,11.03,139.44,139.41,0.05008127]
[1725000950227,11.03,139.44,139.41,3.63618127]
[1725000952931,7.13547647,139.46,139.42,3.586]
[1725000953125,11.03,139.45,139.42,3.586]
[1725000953728,11.03,139.45,139.41,3.63628127]
[1725000954231,7.13547647,139.46,139.42,3.586]
[1725000954425,11.03,139.45,139.42,3.586]
[1725000955732,3.55037647,139.46,139.43,3.5857]
[1725000955932,11.03,139.45,139.43,3.5857]
[1725000956835,11.03,139.45,139.42,3.586]
[1725000957039,4.0684,139.47,139.41,0.05008127]
[1725000957238,15.0984,139.47,139.41,0.05008127]
[1725000957634,4.0684,139.47,139.41,0.05008127]
[1725000958126,15.0984,139.47,139.41,11.08008127]
[1725000959537,18.6832,139.47,139.43,3.5857]
[1725000960738,15.0984,139.47,139.44,3.5854]
[1725000960930,15.0984,139.47,139.44,0.05301666]
[1725000961634,13.7155,139.47,139.44,0.05301666]
[1725000962042,1.3835,139.52,139.44,0.05301666]
[1725000962043,11.03,139.49,139.44,0.05301666]
[1725000962337,15.89,139.49,139.44,0.05301666]
[1725000962640,15.89,139.49,139.45,3.5851]
[1725000962941,3.5842,139.5,139.45,3.5851]
[1725000962942,11.03,139.48,139.45,3.5851]
[1725000963535,11.03,139.48,139.46,3.585]
[1725000963742,8.4442,139.5,139.46,3.585]
[1725000963942,11.03,139.49,139.46,3.585]
[1725000964838,11.03,139.49,139.44,0.05301666]
[1725000964839,4.86,139.5,139.44,3.63899102]
[1725000965041,2.6205,139.51,139.45,11.03]
[1725000965246,18.5105,139.51,139.45,11.03]
[1725000965438,18.5105,139.51,139.47,3.5846]
[1725000965638,18.5105,139.51,139.48,0.04659419]
[1725000965834,13.6505,139.51,139.48,0.04659419]
[1725000966234,18.5105,139.51,139.48,0.04659419]
[1725000966435,7.4805,139.51,139.48,0.04659419]
[1725000966642,11.03,139.5,139.48,0.04659419]
[1725000966839,2.6205,139.51,139.48,3.63099419]
[1725000967040,11.03,139.5,139.48,0.04659419]
[1725000967240,335.0,139.6,139.48,0.04659419]
[1725000967436,11.03,139.53,139.52,0.05436263]
[1725000969142,15.89,139.53,139.4,92.42163003]
[1725000969343,11.03,139.49,139.42,4.86]
[1725000969537,11.03,139.49,139.46,3.585]
[1725000970140,11.08401333,139.49,139.46,3.63425475]
[1725000970351,11.08401333,139.49,139.46,0.04925475]
[1725000970647,11.03,139.48,139.46,0.04925475]
[1725000970851,0.05401333,139.49,139.46,0.04925475]
[1725000970852,11.03,139.47,139.46,0.04925475]
[1725000971146,11.03,139.48,139.46,0.04925475]
[1725000971551,0.05401333,139.49,139.46,0.04925475]
[1725000972845,0.05401333,139.49,139.47,3.5847]
[1725000973035,0.05401333,139.49,139.46,11.07925475]
[1725000973442,0.05401333,139.49,139.47,3.5845]
[1725000973747,0.05401333,139.49,139.46,11.07925475]
[1725000975450,0.05401333,139.49,139.48,3.5845]
[1725000981546,1.3128,139.55,139.48,3.66219896]
[1725000981752,1.3128,139.55,139.51,11.03]
[1725000982155,1.3128,139.55,139.51,14.6135]
[1725000982661,1.3889,139.56,139.52,0.05040418]
[1725000982954,1.3889,139.56,139.52,11.08040418]
[1725000983753,12.4189,139.56,139.52,0.05040418]
[1725000985155,11.03,139.55,139.52,0.05040418]
[1725000985354,12.4275,139.55,139.52,0.05040418]
[1725000985551,3.5832,139.54,139.52,0.05040418]
[1725000987754,3.5832,139.53,139.52,0.05040418]
[1725000989959,14.6132,139.53,139.52,0.05040418]
[1725000991953,3.5836,139.52,139.48,3.5844]
[1725000992956,0.04802562,139.51,139.49,3.63151622]
[1725000998060,0.04802562,139.51,139.5,3.584]
[1725001001068,11.07802562,139.51,139.49,3.63141622]
[1725001001565,17.26802562,139.51,139.49,3.63141622]
[1725001001766,17.26802562,139.51,139.49,0.04721622]
[1725001002572,17.26802562,139.51,139.4,100.83003003]
[1725001002767,11.03,139.46,139.4,100.83003003]
[1725001002970,11.03,139.46,139.4,104.35046013]
[1725001003276,11.03,139.46,139.45,3.5853]
[1725001003472,11.03,139.46,139.44,0.04736326]
[1725001003672,0.04939458,139.47,139.44,0.04736326]
[1725001003673,11.03,139.45,139.44,0.04736326]
[1725001004065,1.3279,139.46,139.44,0.04736326]
[1725001004267,12.3579,139.46,139.44,0.04736326]
[1725001004469,17.1979,139.46,139.44,0.04736326]
[1725001005069,17.1979,139.46,139.45,3.5853]
[1725001005271,12.3579,139.46,139.45,3.5853]
[1725001005471,17.1979,139.46,139.45,3.5853]
[1725001005768,17.1979,139.46,139.44,0.04736326]
[1725001005769,0.04939458,139.47,139.46,3.585]
[1725001008976,0.04939458,139.47,139.46,14.615]
[1725001015085,1.4045,139.54,139.46,11.03]
[1725001015293,6.2445,139.54,139.49,11.03]
[1725001015681,1.4045,139.54,139.49,11.03]
[1725001015875,6.2445,139.54,139.49,11.03]
[1725001016080,11.03,139.55,139.5,0.05151283]
[1725001016280,0.04801312,139.54,139.5,11.08151283]
[1725001017284,0.04801312,139.54,139.53,3.5832]
[1725001026099,0.04801312,139.54,139.53,14.6132]
[1725001030702,1.3341,139.63,139.57,11.03]
[1725001031009,1.3341,139.63,139.59,11.03]
[1725001031506,12.3641,139.63,139.6,0.05203455]
[1725001031801,12.3641,139.63,139.6,3.63323455]
[1725001032002,12.3641,139.63,139.6,0.05203455]
[1725001033405,12.3641,139.63,139.61,3.5812]
[1725001034116,1.3341,139.63,139.62,3.5809]
[1725001035099,1.3341,139.63,139.6,0.05203455]
[1725001035306,11.03,139.62,139.6,0.05203455]
[1725001036001,1.3341,139.63,139.6,0.05203455]
[1725001036202,12.3641,139.63,139.61,3.581]
[1725001037503,1.3341,139.63,139.61,3.581]
[1725001037710,12.3641,139.63,139.61,3.581]
[1725001038610,1.3341,139.63,139.61,3.581]
[1725001040609,1.3341,139.63,139.62,3.5809]
[1725001041114,1.3341,139.63,139.6,0.05203455]
[1725001042010,1.3341,139.63,139.61,3.5812]
[1725001043112,1.3341,139.63,139.62,3.5809]
[1725001046217,12.3641,139.63,139.62,3.5809]
[1725001047415,6.1849,139.64,139.63,3.5807]
[1725001047814,15.87,139.65,139.63,3.5807]
[1725001048717,15.87,139.65,139.6,0.05203455]
[1725001049219,11.03,139.65,139.6,0.05203455]
[1725001049425,11.03,139.65,139.63,3.5806]
[1725001049610,11.03,139.65,139.6,0.05203455]
[1725001050117,11.03,139.65,139.63,3.5805]
[1725001050819,11.03,139.65,139.62,3.5809]
[1725001051016,11.03,139.63,139.62,3.5809]
[1725001053827,4.84,139.65,139.61,0.04803321]
[1725001053828,11.03,139.64,139.63,3.5806]
[1725001054027,11.03,139.64,139.61,0.04803321]
[1725001054224,11.03,139.63,139.61,0.04803321]
[1725001054527,15.1113,139.67,139.61,0.04803321]
[1725001054928,15.1113,139.67,139.64,3.5802]
[1725001055129,15.1113,139.67,139.64,3.63384769]
[1725001055325,11.03,139.65,139.64,0.05364769]
[1725001056030,15.87,139.65,139.64,0.05364769]
[1725001056524,11.03,139.65,139.64,0.05364769]
[1725001056727,15.87,139.65,139.64,0.05364769]
[1725001056931,11.03,139.65,139.64,0.05364769]
[1725001057127,15.87,139.65,139.64,0.05364769]
[1725001057520,11.03,139.65,139.64,0.05364769]
[1725001057920,15.87,139.65,139.64,0.05364769]
[1725001059133,15.87,139.65,139.61,3.5811]
[1725001059328,4.0813,139.67,139.56,11.03]
[1725001059329,15.87,139.64,139.56,11.03]
[1725001059635,11.03,139.66,139.64,3.5802]
[1725001060131,11.08383705,139.66,139.64,3.5802]
[1725001060329,11.08383705,139.66,139.65,3.5802]
[1725001060731,15.92383705,139.66,139.65,3.5802]
[1725001061642,15.92383705,139.66,139.64,3.62653166]
[1725001063027,11.08383705,139.66,139.64,3.62653166]
[1725001063243,15.92383705,139.66,139.64,3.62653166]
[1725001063738,11.03,139.65,139.64,3.62653166]
[1725001064242,11.03,139.65,139.64,0.04623166]
[1725001068039,4.89383705,139.66,139.64,3.62663166]
[1725001068246,11.03,139.65,139.64,3.62663166]
[1725001072246,15.87,139.65,139.64,3.62663166]
[1725001072446,11.03,139.65,139.64,3.62663166]
[1725001072741,15.87,139.65,139.64,3.62663166]
[1725001073043,11.03,139.65,139.64,3.62663166]
[1725001073241,15.87,139.65,139.64,3.62663166]
[1725001073442,11.03,139.65,139.64,3.62663166]
[1725001073945,0.05383705,139.66,139.65,3.5802]
[1725001074149,11.08383705,139.66,139.65,3.5802]
[1725001074745,15.92383705,139.66,139.65,3.5802]
[1725001074947,11.08383705,139.66,139.65,3.5802]
[1725001075646,15.92383705,139.66,139.65,3.5802]
[1725001075945,11.08383705,139.66,139.64,0.04623166]
[1725001076747,4.84,139.65,139.64,0.04623166]
[1725001077342,4.84,139.65,139.64,3.62663166]
[1725001078148,11.08383705,139.66,139.64,3.62663166]
[1725001078343,4.84,139.65,139.64,3.62663166]
[1725001078846,4.84,139.65,139.64,0.04623166]
[1725001079249,11.08383705,139.66,139.64,0.04623166]
[1725001079650,11.08383705,139.66,139.64,3.62663166]
[1725001080247,4.84,139.65,139.64,3.62663166]
[1725001080753,11.08383705,139.66,139.64,3.62663166]
[1725001081148,4.84,139.65,139.64,3.62663166]
[1725001081454,11.08383705,139.66,139.64,3.62663166]
[1725001081750,11.03,139.65,139.64,3.62663166]
[1725001081958,15.87,139.65,139.64,3.62663166]
[1725001082852,15.87,139.65,139.64,0.04623166]
[1725001083851,15.87,139.65,139.57,2.6334]
[1725001084159,15.87,139.65,139.6,3.5814]
[1725001084160,11.03,139.61,139.6,3.5814]
[1725001084557,11.03,139.61,139.57,1.3574]
[1725001084558,15.87,139.61,139.54,91.60545782]
[1725001084752,4.84,139.61,139.59,3.5816]
[1725001085053,0.05311321,139.61,139.59,3.5816]
[1725001085253,3.58659441,139.61,139.59,3.5816]
[1725001085457,4.84,139.6,139.59,3.5816]
[1725001085758,15.87,139.6,139.59,3.5816]
[1725001087357,15.87,139.6,139.58,3.5819]
[1725001087858,15.87,139.6,139.56,0.05107015]
[1725001088053,11.03,139.57,139.56,0.05107015]
[1725001088957,11.03,139.57,139.56,3.63357015]
[1725001102062,11.03,139.57,139.56,0.05107015]
[1725001103964,11.03,139.57,139.56,3.63357015]
[1725001105560,11.03,139.57,139.56,0.05107015]
[1725001108476,0.05034664,139.58,139.57,3.5822]
[1725001108669,2.6528,139.66,139.56,11.08107015]
[1725001108870,11.03,139.62,139.57,1.3541]
[1725001109470,11.03,139.62,139.57,2.1761]
[1725001109768,0.04625327,139.61,139.58,0.04645963]
[1725001110584,0.04625327,139.61,139.6,3.5814]
[1725001111183,11.07625327,139.61,139.59,3.5816]
[1725001111681,11.07625327,139.61,139.58,0.04645963]
[1725001112080,11.07625327,139.61,139.6,3.5814]
[1725001113681,4.82,139.66,139.6,3.65358447]
[1725001113984,11.03,139.64,139.57,2.1761]
[1725001114184,3.5797,139.67,139.58,11.03]
[1725001114383,11.03,139.65,139.58,11.03]
[1725001114591,11.03,139.65,139.64,3.5804]
[1725001114784,4.88441878,139.69,139.63,0.05366192]
[1725001114995,11.03,139.68,139.65,0.04661165]
[1725001115788,11.03,139.67,139.65,0.04661165]
[1725001116183,4.82,139.67,139.59,3.65029357]
[1725001116391,11.03,139.63,139.62,3.5809]
[1725001118188,0.05045309,139.64,139.63,3.5807]
[1725001120290,4.9536,139.7,139.65,3.58]
[1725001120486,11.03,139.68,139.65,3.58]
[1725001120789,32.2383,139.73,139.67,3.5794]
[1725001120992,11.03,139.71,139.64,11.03]
[1725001121291,11.03,139.71,139.66,0.04687197]
[1725001121994,11.03,139.68,139.66,0.04687197]
[1725001122488,11.03,139.68,139.67,3.5796]
[1725001122686,4.82,139.72,139.66,0.04687197]
[1725001122994,11.03,139.69,139.66,0.04687197]
[1725001123390,11.03,139.67,139.66,0.04687197]
[1725001123792,6.1202,139.72,139.66,0.04687197]
[1725001123793,4.82,139.72,139.66,0.04687197]
[1725001123992,11.03,139.71,139.66,0.04687197]
[1725001125300,11.03,139.71,139.68,3.5792]
[1725001126293,11.03,139.71,139.67,3.5796]
[1725001126793,14.6096,139.68,139.66,0.04687197]
[1725001127594,19.4296,139.68,139.66,0.04687197]
[1725001127797,3.5796,139.67,139.66,0.04687197]
[1725001134509,19.4295,139.68,139.66,0.04687197]
[1725001135509,19.4295,139.68,139.57,4.82]
[1725001135510,59.97,139.68,139.57,4.82]
[1725001135712,11.03,139.65,139.58,11.03]
[1725001136407,11.03,139.65,139.63,3.5805]
[1725001136599,11.07574917,139.65,139.63,3.63113819]
[1725001138408,11.07574917,139.65,139.57,3.60482349]
[1725001138604,11.03,139.62,139.57,3.60482349]
[1725001139410,11.03,139.62,139.61,3.5811]
[1725001141107,11.03,139.62,139.58,0.0509425]
[1725001142405,11.03,139.61,139.58,0.0509425]
[1725001142608,11.03,139.61,139.58,3.6327425]
[1725001144514,11.03,139.61,139.58,0.0509425]
[1725001144717,11.03,139.62,139.58,0.0509425]
[1725001145513,11.03,139.62,139.59,3.5815]
[1725001149113,11.03,139.62,139.6,3.5814]
[1725001152430,11.03,139.61,139.58,0.0509425]
[1725001153230,11.03,139.61,139.58,3.6327425]
[1725001153921,8.4009,139.62,139.59,3.5817]
[1725001154119,19.4309,139.62,139.59,3.5817]
[1725001154921,15.85,139.62,139.59,3.5817]
[1725001155719,11.03,139.61,139.58,0.0509425]
[1725001156622,14.6113,139.61,139.58,0.0509425]
[1725001160623,14.6117,139.59,139.58,0.0509425]
[1725001165923,0.05231014,139.6,139.59,3.5817]
[1725001180137,0.05231014,139.6,139.58,0.0509425]
[1725001180338,11.08231014,139.6,139.58,0.0509425]
[1725001180639,0.05231014,139.6,139.58,0.0509425]
[1725001182143,0.05231014,139.6,139.59,3.5817]
[1725001182537,0.05231014,139.6,139.58,3.6327425]
[1725001183938,0.05231014,139.6,139.59,3.5817]
[1725001188147,0.05231014,139.6,139.58,0.0509425]
[1725001189055,0.05231014,139.6,139.59,3.5817]
[1725001198869,0.05231014,139.6,139.58,0.0509425]
[1725001200360,0.05231014,139.6,139.58,3.6328425]
[1725001200961,0.05231014,139.6,139.58,0.0509425]
[1725001201764,0.05231014,139.6,139.58,3.6328425]
[1725001204871,0.05231014,139.6,139.59,3.5817]
[1725001207073,0.05231014,139.6,139.58,3.6328425]
[1725001207462,0.05231014,139.6,139.59,3.5817]
[1725001207666,335.0,139.74,139.58,11.0809425]
[1725001207867,18.15601168,139.68,139.62,11.03]
[1725001208072,4.82,139.68,139.62,11.03]
[1725001208263,15.85,139.69,139.63,11.03]
[1725001208472,11.03,139.69,139.63,11.03]
[1725001208674,0.04520002,139.67,139.65,0.05383023]
[1725001209361,0.04520002,139.67,139.65,3.63383023]
[1725001210177,0.04520002,139.67,139.66,3.5799]
[1725001210865,0.04520002,139.67,139.65,3.63393023]
[1725001211473,0.04520002,139.67,139.66,3.5799]
[1725001212772,11.07520002,139.67,139.65,0.05383023]
[1725001213177,0.04520002,139.67,139.65,0.05383023]
[1725001213380,0.04520002,139.67,139.66,3.5799]
[1725001214380,0.04520002,139.67,139.65,3.63393023]
[1725001215375,0.04520002,139.67,139.66,3.5799]
[1725001216871,0.04520002,139.67,139.65,0.05383023]
[1725001217471,0.04520002,139.67,139.65,3.63373023]
[1725001218483,11.07520002,139.67,139.65,3.63373023]
[1725001218778,11.03,139.66,139.65,0.05383023]
[1725001218978,11.03,139.66,139.59,11.03]